bitfinex/quotes_ETHUSD_20220115
["timestamp","ask_amount","ask_price","bid_price","bid_amount"]
[1642264399241,1.51184626,3363.1,3362.8,0.474463]
[1642264399441,1.51184626,3363.1,3362.8,0.519926]
[1642264399643,0.00113684,3363.1,3362.9,0.045463]
[1642264399842,0.00113684,3363.1,3363.0,0.045463]
[1642264400043,0.00113684,3363.1,3362.8,3.029]
[1642264400249,0.00113684,3363.1,3362.8,3.074463]
[1642264400442,0.00113684,3363.1,3362.9,0.045463]
[1642264400641,0.77813684,3363.1,3362.8,3.074463]
[1642264400841,0.77813684,3363.1,3362.8,3.119926]
[1642264401089,0.77813684,3363.1,3363.0,0.090926]
[1642264401291,1.55938036,3363.1,3363.0,0.833996]
[1642264401490,1.55938036,3363.1,3363.0,0.788533]
[1642264401687,1.55938036,3363.1,3363.0,0.74307]
[1642264402088,1.55938036,3363.1,3363.0,0.788533]
[1642264402490,1.55938036,3363.1,3362.9,0.045463]
[1642264403094,1.55938036,3363.1,3363.0,0.429]
[1642264403301,1.55938036,3363.1,3363.0,0.474463]
[1642264403893,2.33638036,3363.1,3363.0,0.474463]
[1642264404094,2.33638036,3363.1,3363.0,0.429]
[1642264405147,2.33638036,3363.1,3363.0,0.474463]
[1642264405551,2.33638036,3363.1,3363.0,0.519926]
[1642264406048,2.33638036,3363.1,3363.0,0.474463]
[1642264406647,2.33638036,3363.1,3363.0,0.519926]
[1642264407048,3.11338036,3363.1,3363.0,0.519926]
[1642264408248,3.11338036,3363.1,3363.0,0.474463]
[1642264408685,3.11338036,3363.1,3363.0,0.519926]
[1642264409286,3.11338036,3363.1,3363.0,0.474463]
[1642264409486,3.11338036,3363.1,3363.0,0.429]
[1642264409688,3.11338036,3363.1,3363.0,0.474463]
[1642264410289,3.89038036,3363.1,3363.0,0.474463]
[1642264410794,3.89038036,3363.1,3363.0,0.429]
[1642264411097,3.89038036,3363.1,3363.0,0.474463]
[1642264412947,3.89038036,3363.1,3363.0,0.429]
[1642264413451,4.66738036,3363.1,3363.0,0.429]
[1642264413647,4.66738036,3363.1,3363.0,0.474463]
[1642264413848,4.66738036,3363.1,3363.0,0.429]
[1642264414648,4.66738036,3363.1,3363.0,0.474463]
[1642264414846,4.66738036,3363.1,3363.0,0.429]
[1642264415448,4.66738036,3363.1,3363.0,0.474463]
[1642264416098,4.66738036,3363.1,3363.0,0.429]
[1642264416694,5.44438036,3363.1,3363.0,0.429]
[1642264416898,5.44438036,3363.1,3362.8,2.6]
[1642264416899,5.56328036,3363.1,3362.8,2.6]
[1642264418897,1.51070942,3362.9,3362.8,2.6]
[1642264419097,3.45706678,3362.9,3362.8,2.6]
[1642264419299,1.50674831,3362.9,3362.8,2.6]
[1642264419497,1.50674831,3362.9,3362.8,2.645463]
[1642264419697,1.50674831,3362.9,3362.8,2.6]
[1642264419941,0.777,3362.9,3362.8,2.6]
[1642264420142,1.55824352,3362.9,3362.8,2.6]
[1642264423043,2.33524352,3362.9,3362.8,2.6]
[1642264424116,2.33524352,3362.9,3362.8,2.645463]
[1642264424320,2.33524352,3362.9,3362.8,2.6]
[1642264426321,3.11224352,3362.9,3362.8,2.6]
[1642264426722,3.06224352,3362.9,3362.8,2.6]
[1642264427124,3.06224352,3362.9,3362.8,2.7189]
[1642264427651,3.06224352,3362.9,3362.8,2.6]
[1642264429449,3.83924352,3362.9,3362.8,2.6]
[1642264430953,5.35897019,3362.9,3362.8,2.6]
[1642264431194,7.20471648,3362.9,3362.8,2.6]
[1642264431797,5.68498981,3362.9,3362.8,2.6]
[1642264431994,3.83924352,3362.9,3362.8,2.6]
[1642264432593,4.61624352,3362.9,3362.8,2.6]
[1642264433695,6.46065439,3362.9,3362.8,2.6]
[1642264435041,4.61624352,3362.9,3362.8,2.6]
[1642264435842,6.91297019,3362.9,3362.8,2.6]
[1642264436244,6.91297019,3362.9,3362.8,2.645463]
[1642264436442,6.91297019,3362.9,3362.8,2.690926]
[1642264436645,5.39324352,3362.9,3362.8,2.690926]
[1642264437043,5.39324352,3362.9,3362.8,3.79080992]
[1642264437244,5.39324352,3362.9,3362.8,3.90970992]
[1642264438587,5.39324352,3362.9,3362.8,3.81878392]
[1642264438990,6.17024352,3362.9,3362.8,5.1205112]
[1642264439787,6.17024352,3362.9,3362.8,3.69988392]
[1642264440790,6.17024352,3362.9,3362.8,3.74534692]
[1642264440992,6.17024352,3362.9,3362.8,3.69988392]
[1642264441191,6.17024352,3362.9,3362.8,3.74534692]
[1642264441392,6.17024352,3362.9,3362.8,3.79080992]
[1642264442193,6.94724352,3362.9,3362.8,3.79080992]
[1642264442648,6.94724352,3362.9,3362.8,5.17957626]
[1642264442844,6.94724352,3362.9,3362.8,5.22503926]
[1642264443144,6.94724352,3362.9,3362.8,5.65403926]
[1642264443946,6.94724352,3362.9,3362.8,5.77293926]
[1642264444847,6.94724352,3362.9,3362.8,4.33870992]
[1642264445447,7.72424352,3362.9,3362.8,4.33870992]
[1642264446901,7.72424352,3362.9,3362.8,5.76903379]
[1642264448698,8.50124352,3362.9,3362.8,5.76903379]
[1642264451945,9.27824352,3362.9,3362.8,5.67810779]
[1642264452744,9.27824352,3362.9,3362.8,4.24778392]
[1642264452945,9.24259149,3362.9,3362.8,4.12888392]
[1642264453592,9.24259149,3362.9,3362.8,5.464918]
[1642264454396,9.24259149,3362.9,3362.8,4.12888392]
[1642264454996,10.01959149,3362.9,3362.8,4.17434692]
[1642264455597,10.01959149,3362.9,3362.8,5.46442642]
[1642264456298,10.01959149,3362.9,3362.8,3.9355425]
[1642264456895,10.01959149,3362.9,3362.8,2.6]
[1642264458247,10.79659149,3362.9,3362.8,2.6]
[1642264458446,10.79659149,3362.9,3362.8,3.71592901]
[1642264458848,10.91549149,3362.9,3362.8,2.6]
[1642264459847,10.91549149,3362.9,3362.8,2.52018644]
[1642264461291,13.19272825,3362.9,3362.8,2.52018644]
[1642264461493,13.85082825,3362.9,3362.8,2.52018644]
[1642264461892,13.96972825,3362.9,3362.2,1.0]
[1642264462092,3.65191965,3362.8,3362.2,1.0]
[1642264462294,1.89471257,3362.7,3362.3,0.00341054]
[1642264462494,0.1189,3362.8,3362.6,0.045463]
[1642264462695,11.57359149,3362.9,3362.6,0.045463]
[1642264462892,11.57359149,3362.9,3362.7,0.00113685]
[1642264463097,10.79234797,3362.9,3362.8,1.31761205]
[1642264464693,11.56934797,3362.9,3362.8,1.31761205]
[1642264468057,12.34634797,3362.9,3362.8,1.31761205]
[1642264469498,12.34634797,3362.9,3362.8,1.36307505]
[1642264469896,12.34634797,3362.9,3362.8,1.31761205]
[1642264470396,12.34634797,3362.9,3362.8,1.40853805]
[1642264470998,12.34634797,3362.9,3362.8,1.52743805]
[1642264471203,13.12334797,3362.9,3362.8,1.52743805]
[1642264471497,13.12334797,3362.9,3362.8,1.48197505]
[1642264471697,13.12334797,3362.9,3362.8,4.02743805]
[1642264473049,13.12334797,3362.9,3362.8,5.03125266]
[1642264474848,13.90034797,3362.9,3362.8,5.00108666]
[1642264475048,13.90034797,3362.9,3362.8,5.43008666]
[1642264476798,13.90034797,3362.9,3362.8,5.33916066]
[1642264476997,13.90034797,3362.9,3362.8,5.22026066]
[1642264477199,13.90034797,3362.9,3362.8,5.26572366]
[1642264477398,13.90034797,3362.9,3362.8,5.31118666]
[1642264478199,13.90034797,3362.9,3362.8,5.47554966]
[1642264478401,14.67734797,3362.9,3362.8,5.47554966]
[1642264478800,16.18879173,3362.9,3362.8,5.47554966]
[1642264481647,16.96579173,3362.9,3362.8,5.47554966]
[1642264482248,16.9618304,3362.9,3362.8,5.47554966]
[1642264484900,17.7388304,3362.9,3362.8,5.47554966]
[1642264486306,17.7388304,3362.9,3362.8,5.35664966]
[1642264488154,18.5158304,3362.9,3362.8,5.22026066]
[1642264488354,18.5158304,3362.9,3362.8,5.26572366]
[1642264488556,18.5158304,3362.9,3362.8,5.22026066]
[1642264489454,18.5158304,3362.9,3362.8,4.79126066]
[1642264489855,18.5158304,3362.9,3362.8,3.87837205]
[1642264490656,18.5158304,3362.9,3362.8,3.78744605]
[1642264491301,19.2928304,3362.9,3362.8,3.78744605]
[1642264491701,19.2928304,3362.9,3362.8,4.53058605]
[1642264491903,19.2928304,3362.9,3362.8,4.57604905]
[1642264492102,21.49267524,3362.9,3362.8,4.57604905]
[1642264492901,19.2928304,3362.9,3362.8,4.57604905]
[1642264493301,19.2928304,3362.9,3362.8,4.53058605]
[1642264493702,19.2928304,3362.9,3362.8,4.57604905]
[1642264494302,20.02916478,3362.9,3362.8,4.57604905]
[1642264494503,20.02916478,3362.9,3362.8,4.37138605]
[1642264494951,20.02916478,3362.9,3362.8,3.62824605]
[1642264495154,20.02916478,3362.9,3362.8,3.67370905]
[1642264495754,20.02916478,3362.9,3362.8,3.71917205]
[1642264495955,20.02916478,3362.9,3362.8,4.14817205]
[1642264495956,14.08534478,3362.9,3362.8,4.14817205]
[1642264496153,14.08534478,3362.9,3362.8,4.1610796]
[1642264496353,14.08534478,3362.9,3362.8,21.5510796]
[1642264496552,8.14168478,3362.9,3362.8,21.5510796]
[1642264497155,2.19791478,3362.9,3362.8,22.35786923]
[1642264497354,2.15935398,3362.9,3362.8,22.35786923]
[1642264497554,2.93635398,3362.9,3362.8,22.35786923]
[1642264499197,2.93635398,3362.9,3362.8,22.34496168]
[1642264499598,2.93635398,3362.9,3362.8,21.84496168]
[1642264500001,2.93635398,3362.9,3362.8,21.96386168]
[1642264500798,3.71335398,3362.9,3362.8,21.96386168]
[1642264501600,3.71335398,3362.9,3362.8,4.57386168]
[1642264501800,3.71335398,3362.9,3362.8,4.52839868]
[1642264503552,3.71335398,3362.9,3362.8,21.91839868]
[1642264504051,4.49035398,3362.9,3362.8,21.91839868]
[1642264504354,4.49035398,3362.9,3362.8,21.79949868]
[1642264505150,4.49035398,3362.9,3362.8,4.40949868]
[1642264505350,4.49035398,3362.9,3362.8,4.52839868]
[1642264505550,4.49035398,3362.9,3362.8,21.91839868]
[1642264506200,4.49035398,3362.9,3362.8,4.52839868]
[1642264506404,4.49035398,3362.9,3362.8,23.65921963]
[1642264506599,4.49035398,3362.9,3362.8,4.40949868]
[1642264507206,5.26735398,3362.9,3362.8,4.40949868]
[1642264507904,4.662,3363.1,3362.8,4.40949868]
[1642264508104,4.662,3363.1,3363.0,0.045463]
[1642264508303,4.662,3363.1,3363.0,0.474463]
[1642264509103,4.662,3363.1,3363.0,0.519926]
[1642264509305,4.662,3363.1,3363.0,0.474463]
[1642264509504,4.662,3363.1,3363.0,0.519926]
[1642264510352,5.439,3363.1,3363.0,0.429]
[1642264510956,5.439,3363.1,3363.0,0.474463]
[1642264511853,5.439,3363.1,3363.0,0.429]
[1642264512454,5.439,3363.1,3363.0,2.474463]
[1642264512654,0.777,3363.5,3363.1,18.13291]
[1642264512854,0.777,3363.5,3363.2,0.02521208]
[1642264513054,8.48694915,3363.6,3363.4,0.045463]
[1642264513255,8.48694915,3363.6,3363.5,1.18399634]
[1642264513453,8.48694915,3363.6,3363.5,1.61299634]
[1642264513701,9.26394915,3363.6,3363.5,1.61299634]
[1642264514303,7.74285939,3363.6,3363.5,1.61299634]
[1642264514701,7.74285939,3363.6,3363.5,2.35585634]
[1642264514908,7.74285939,3363.6,3363.5,4.23381381]
[1642264515305,7.74285939,3363.6,3363.5,2.35585634]
[1642264515503,7.74285939,3363.6,3363.5,1.61299634]
[1642264515901,7.74285939,3363.6,3363.5,1.56753334]
[1642264516102,7.74285939,3363.6,3363.5,1.61299634]
[1642264516304,7.74285939,3363.6,3363.5,1.56753334]
[1642264516802,8.51985939,3363.6,3363.5,1.56753334]
[1642264517753,10.00412028,3363.6,3363.5,1.56753334]
[1642264518852,10.00412028,3363.6,3363.5,2.31040324]
[1642264519052,10.00412028,3363.6,3363.5,2.35586624]
[1642264519253,10.00412028,3363.6,3363.5,1.61299634]
[1642264519452,10.00412028,3363.6,3363.5,2.62035592]
[1642264519655,10.00412028,3363.6,3363.5,3.40866892]
[1642264519854,10.00412028,3363.6,3363.5,3.36320592]
[1642264520058,10.78112028,3363.6,3363.5,3.40866892]
[1642264520454,10.78112028,3363.6,3363.5,2.35584634]
[1642264520857,4.83857028,3363.6,3363.5,5.89268063]
[1642264521100,4.83857028,3363.6,3363.5,6.09938063]
[1642264521300,1.52108976,3364.0,3363.5,23.48938063]
[1642264521504,4.19213464,3364.2,3363.8,0.090926]
[1642264521505,1.52108976,3364.1,3363.8,0.090926]
[1642264521701,1.52108976,3364.1,3363.9,1.217243]
[1642264521902,0.777,3364.2,3363.9,1.262706]
[1642264522100,0.777,3364.2,3364.0,0.045463]
[1642264522302,0.00682108,3364.1,3364.0,0.090926]
[1642264522501,0.00682108,3364.1,3364.0,0.519926]
[1642264523000,0.00682108,3364.1,3364.0,0.429]
[1642264523202,0.78382108,3364.1,3364.0,2.929]
[1642264523401,0.78382108,3364.1,3364.0,4.7896002]
[1642264523601,0.78382108,3364.1,3364.0,2.974463]
[1642264523801,0.78382108,3364.1,3364.0,3.065389]
[1642264524002,0.78382108,3364.1,3364.0,4.80518589]
[1642264524202,0.78382108,3364.1,3364.0,2.974463]
[1642264524401,0.78382108,3364.1,3364.0,4.8490246]
[1642264524602,0.78382108,3364.1,3364.0,4.8035616]
[1642264525057,0.78382108,3364.1,3364.0,4.91498009]
[1642264525861,0.78382108,3364.1,3364.0,4.86951709]
[1642264526057,0.78382108,3364.1,3364.0,2.974463]
[1642264526258,0.777,3364.2,3364.0,4.93808535]
[1642264526458,0.70756218,3364.2,3364.1,19.76424386]
[1642264526659,0.70756218,3364.2,3364.1,20.19324386]
[1642264526860,2.331,3364.5,3364.1,20.19324386]
[1642264527058,2.331,3364.5,3364.2,0.045463]
[1642264527361,0.00170527,3364.4,3364.3,2.63774362]
[1642264527559,2.331,3364.5,3364.3,4.71393832]
[1642264527758,2.331,3364.5,3364.4,1.91036717]
[1642264527965,2.331,3364.5,3364.4,19.77483017]
[1642264528602,2.331,3364.5,3364.4,19.82029317]
[1642264529203,2.331,3364.5,3364.4,19.93909317]
[1642264529404,3.108,3364.5,3364.4,19.93909317]
[1642264529804,3.108,3364.5,3364.4,2.54909317]
[1642264530005,3.108,3364.5,3364.4,2.50363017]
[1642264530808,3.108,3364.5,3364.4,19.89363017]
[1642264531007,1.1636,3364.9,3364.4,20.74744017]
[1642264531206,1.1636,3364.9,3364.7,0.74265]
[1642264531406,0.00227369,3364.8,3364.7,1.530743]
[1642264531608,0.00227369,3364.8,3364.7,1.576206]
[1642264531806,0.00284212,3364.9,3364.7,1.530743]
[1642264532008,0.00284212,3364.9,3364.8,0.429]
[1642264532209,0.00341054,3365.0,3364.8,0.429]
[1642264532457,0.00284212,3364.9,3364.8,0.474463]
[1642264532850,0.00284212,3364.9,3364.8,0.429]
[1642264534257,0.00284212,3364.9,3364.8,0.519926]
[1642264534456,0.00284212,3364.9,3364.8,0.429]
[1642264535954,0.77984212,3364.9,3364.8,0.429]
[1642264539212,1.55684212,3364.9,3364.8,0.429]
[1642264541258,1.55684212,3364.9,3364.8,0.474463]
[1642264541458,1.55684212,3364.9,3364.8,0.429]
[1642264541657,3.00294588,3364.9,3364.8,0.429]
[1642264542458,3.77994588,3364.9,3364.8,2.929]
[1642264542660,3.77994588,3364.9,3364.8,2.974463]
[1642264543060,3.77994588,3364.9,3364.8,2.929]
[1642264545512,4.55694588,3364.9,3364.8,2.929]
[1642264547110,4.50694588,3364.9,3364.8,2.929]
[1642264548354,4.50694588,3364.9,3364.8,2.974463]
[1642264548557,4.50694588,3364.9,3364.8,2.929]
[1642264548755,5.28394588,3364.9,3364.8,2.929]
[1642264550657,5.28394588,3364.9,3364.8,2.974463]
[1642264551925,6.06094588,3364.9,3364.8,2.974463]
[1642264553211,6.06094588,3364.9,3364.8,2.929]
[1642264554018,6.06094588,3364.9,3364.8,2.5]
[1642264554857,16.31094588,3364.9,3364.8,2.5]
[1642264555053,18.60489849,3364.9,3364.8,2.5]
[1642264556254,6.83794588,3364.9,3364.8,2.5]
[1642264556854,11.43794588,3364.9,3364.8,2.5]
[1642264557454,13.71958052,3364.9,3364.8,2.5]
[1642264557654,13.83838052,3364.9,3364.8,2.5]
[1642264557856,23.63838052,3364.9,3364.8,2.5]
[1642264558056,9.23838052,3364.9,3364.8,2.5]
[1642264558255,10.01538052,3364.9,3364.8,2.5]
[1642264558457,7.73374588,3364.9,3364.8,2.5]
[1642264558907,0.18670127,3364.7,3363.7,1.87039312]
[1642264559106,0.18670127,3364.7,3363.0,0.1216]
[1642264559312,1.20478746,3364.4,3364.2,0.00397897]
[1642264560010,1.4715401,3364.3,3363.8,0.00625266]
[1642264560207,1.20478746,3364.4,3363.9,0.1189]
[1642264560609,1.20478746,3364.4,3364.0,0.00511581]
[1642264560908,0.18670127,3364.7,3364.1,0.1188]
[1642264560909,1.44610376,3364.2,3364.1,0.1188]
[1642264561308,1.44610376,3364.2,3364.1,0.12334739]
[1642264561508,2.22310376,3364.2,3364.1,0.00454739]
[1642264561710,0.777,3364.2,3364.1,0.00454739]
[1642264561911,0.777,3364.2,3363.8,0.00625266]
[1642264562109,0.777,3364.2,3363.9,0.1189]
[1642264562367,2.22310376,3364.2,3363.9,0.1189]
[1642264562555,2.22310376,3364.2,3364.0,0.00511581]
[1642264563058,0.777,3364.2,3364.1,1.41728588]
[1642264563456,0.777,3364.2,3364.1,1.54073327]
[1642264563656,2.22310376,3364.2,3364.1,1.54073327]
[1642264563855,2.22310376,3364.2,3364.1,1.96973327]
[1642264564758,3.00010376,3364.2,3364.1,1.96973327]
[1642264567908,3.77710376,3364.2,3364.1,1.96973327]
[1642264569510,3.77710376,3364.2,3364.1,2.94488598]
[1642264569713,3.77710376,3364.2,3364.1,1.5276001]
[1642264570956,3.77710376,3364.2,3364.1,1.40664157]
[1642264571157,4.55410376,3364.2,3364.1,0.43148886]
[1642264574409,5.33110376,3364.2,3364.1,0.43148886]
[1642264575110,5.33110376,3364.2,3364.1,1.30217377]
[1642264576511,5.33110376,3364.2,3364.1,1.42107377]
[1642264577011,5.33110376,3364.2,3364.1,0.55038886]
[1642264577213,5.32360523,3364.2,3364.1,2.40176472]
[1642264577466,5.32360523,3364.2,3364.1,0.55038886]
[1642264577660,6.10060523,3364.2,3364.1,1.40053553]
[1642264579460,7.61115746,3364.2,3364.1,1.28163553]
[1642264579760,6.10060523,3364.2,3364.1,0.43148886]
[1642264580960,6.87760523,3364.2,3364.1,0.43148886]
[1642264581606,8.16755178,3364.2,3364.1,0.43148886]
[1642264582108,6.87760523,3364.2,3364.1,0.43148886]
[1642264583209,8.24116151,3364.2,3364.1,0.43148886]
[1642264584309,9.01816151,3364.2,3364.1,0.43148886]
[1642264585363,9.06362451,3364.2,3364.1,0.00248886]
[1642264585764,9.06362451,3364.2,3363.7,0.00476256]
[1642264586362,10.58192729,3364.2,3363.7,0.00476256]
[1642264587362,1.44610376,3364.1,3363.7,0.00476256]
[1642264587966,0.1189,3364.0,3363.7,0.00476256]
[1642264589006,9.395463,3363.8,3363.7,0.00476256]
[1642264589207,9.514363,3363.8,3363.7,0.00476256]
[1642264589407,4.564363,3363.8,3363.7,0.00476256]
[1642264589706,0.164363,3363.8,3363.7,0.00476256]
[1642264590108,1.61046676,3363.8,3363.7,0.00476256]
[1642264590412,6.29156676,3363.8,3363.7,0.00476256]
[1642264590607,7.06856676,3363.8,3363.7,0.00476256]
[1642264590807,5.622463,3363.8,3363.7,0.00476256]
[1642264591208,5.741363,3363.8,3363.7,0.00476256]
[1642264591708,7.18746676,3363.8,3363.7,0.00476256]
[1642264592109,2.38746676,3363.8,3363.7,0.00476256]
[1642264592366,2.34200376,3363.8,3363.7,0.00476256]
[1642264592761,2.22310376,3363.8,3363.7,0.00476256]
[1642264593070,3.74140654,3363.8,3363.7,0.00476256]
[1642264593865,3.00010376,3363.8,3363.7,0.00476256]
[1642264594670,3.00010376,3363.8,3363.7,0.43376256]
[1642264595675,3.00010376,3363.8,3363.7,3.02720934]
[1642264596515,3.00010376,3363.8,3363.7,1.17666256]
[1642264596714,3.00010376,3363.8,3363.7,1.95674524]
[1642264597113,3.77710376,3363.8,3363.7,1.95674524]
[1642264597513,3.77710376,3363.8,3363.7,3.81809493]
[1642264599615,3.77710376,3363.8,3363.7,1.95674524]
[1642264599869,7.14986447,3364.2,3363.7,3.8118398]
[1642264600065,7.14986447,3364.2,3363.8,0.05934149]
[1642264600258,7.92686447,3364.2,3363.9,2.57386571]
[1642264600458,7.88140147,3364.2,3364.0,1.51910084]
[1642264600658,7.88140147,3364.2,3364.1,0.5479]
[1642264600865,7.88140147,3364.2,3364.1,0.55038886]
[1642264601960,7.88140147,3364.2,3364.1,0.43148886]
[1642264602562,7.88140147,3364.2,3364.1,3.15132193]
[1642264602762,7.88140147,3364.2,3364.1,1.29314886]
[1642264602964,1.93977147,3364.2,3364.1,1.30549589]
[1642264603161,1.93977147,3364.2,3364.1,3.18095828]
[1642264603368,0.777,3364.2,3364.1,3.18095828]
[1642264603609,0.777,3364.2,3364.1,1.30549589]
[1642264603809,0.777,3364.2,3364.1,3.21058273]
[1642264604009,0.045463,3364.5,3364.1,3.21058273]
[1642264604209,0.045463,3364.5,3364.1,3.95328273]
[1642264604412,0.045463,3364.5,3364.2,0.02608085]
[1642264604611,1.35610127,3364.7,3364.3,0.429]
[1642264604810,2.46039927,3364.7,3364.3,0.43035201]
[1642264605010,1.29099927,3364.7,3364.3,0.43035201]
[1642264606613,2.06799927,3364.7,3364.3,0.43035201]
[1642264606814,0.96370127,3364.7,3364.3,0.43035201]
[1642264608571,2.09208694,3364.7,3364.3,0.43035201]
[1642264609567,0.96370127,3364.7,3364.3,0.43035201]
[1642264609769,1.74070127,3364.7,3364.3,0.43035201]
[1642264610567,1.24727387,3364.4,3364.3,0.43035201]
[1642264610769,1.74070127,3364.7,3364.3,0.43035201]
[1642264613110,2.51770127,3364.7,3364.3,0.43035201]
[1642264614113,1.30101057,3364.6,3364.3,0.43035201]
[1642264614514,2.51770127,3364.7,3364.3,0.43035201]
[1642264615662,1.54660833,3364.5,3364.3,0.43035201]
[1642264615863,2.51770127,3364.7,3364.3,0.43035201]
[1642264616268,3.29470127,3364.7,3364.3,0.43035201]
[1642264619508,4.07170127,3364.7,3364.3,0.43035201]
[1642264620307,4.07170127,3364.7,3364.5,1.5234886]
[1642264620507,1.76549936,3364.6,3364.5,1.9524886]
[1642264622559,1.76549936,3364.6,3364.5,3.9524886]
[1642264622765,2.54249936,3364.6,3364.5,1.9524886]
[1642264622959,2.54249936,3364.6,3364.5,2.0712886]
[1642264623159,2.54249936,3364.6,3364.5,2.10421554]
[1642264624659,2.54249936,3364.6,3364.5,2.0712886]
[1642264624860,2.54249936,3364.6,3364.5,4.02320455]
[1642264625060,2.54249936,3364.6,3364.5,3.98764315]
[1642264625260,2.54249936,3364.6,3364.5,2.0712886]
[1642264625560,2.54249936,3364.6,3364.5,22.86982339]
[1642264625760,2.54249936,3364.6,3364.5,5.47982339]
[1642264625961,3.31949936,3364.6,3364.5,3.58825078]
[1642264626213,3.31949936,3364.6,3364.5,3.5566386]
[1642264626719,1.554,3364.6,3364.5,3.5566386]
[1642264627413,1.554,3364.6,3364.5,3.59278757]
[1642264627614,3.32891551,3364.6,3364.5,5.44615733]
[1642264627812,3.32891551,3364.6,3364.5,5.45331308]
[1642264628419,3.32891551,3364.6,3364.5,3.59278757]
[1642264628714,3.32891551,3364.6,3364.5,5.4419649]
[1642264629114,4.10591551,3364.6,3364.5,5.4419649]
[1642264629715,2.331,3364.6,3364.5,5.4419649]
[1642264629964,2.331,3364.6,3364.5,3.5566386]
[1642264630161,2.331,3364.6,3364.5,3.58897175]
[1642264631063,4.11751916,3364.6,3364.5,3.58897175]
[1642264631663,4.11751916,3364.6,3364.5,3.5566386]
[1642264632066,4.11751916,3364.6,3364.5,3.4378386]
[1642264632263,4.89451916,3364.6,3364.5,3.4378386]
[1642264633467,4.89451916,3364.6,3364.5,1.5234886]
[1642264633717,3.108,3364.6,3364.5,1.5234886]
[1642264634318,4.91752889,3364.6,3364.3,0.00135201]
[1642264634716,4.91752889,3364.6,3364.1,0.00248886]
[1642264635316,1.80952889,3364.5,3364.1,0.00248886]
[1642264635517,1.80952889,3364.5,3364.4,1.1354374]
[1642264637466,0.01420436,3364.4,3364.1,0.00248886]
[1642264638161,1.80952889,3364.5,3364.1,0.03273656]
[1642264638362,1.80160998,3364.5,3364.2,1.31579589]
[1642264638561,3.885,3364.6,3364.3,0.05859176]
[1642264638763,0.777,3364.5,3364.4,0.74277]
[1642264639569,0.777,3364.5,3364.4,1.17177]
[1642264642116,1.554,3364.5,3364.4,1.17177]
[1642264645060,1.554,3364.5,3364.4,4.67177]
[1642264645260,2.1393731,3364.5,3364.4,1.17177]
[1642264648466,2.9163731,3364.5,3364.4,1.17177]
[1642264651716,3.6933731,3364.5,3364.4,1.17177]
[1642264653462,5.01436102,3364.5,3364.4,1.17177]
[1642264653863,6.87198502,3364.5,3364.4,1.17177]
[1642264654864,7.64898502,3364.5,3364.4,1.17177]
[1642264655065,7.63756126,3364.5,3364.4,1.17177]
[1642264655263,7.63756126,3364.5,3364.4,0.429]
[1642264655467,7.66757461,3364.5,3364.4,0.429]
[1642264655862,5.79136102,3364.5,3364.4,0.429]
[1642264656715,5.7405554,3364.5,3364.4,0.429]
[1642264658121,8.39379918,3364.5,3364.4,0.429]
[1642264658314,6.5175554,3364.5,3364.4,0.429]
[1642264658914,10.20441338,3364.5,3364.4,0.429]
[1642264659517,10.24987638,3364.5,3364.4,0.429]
[1642264659966,8.40020911,3364.5,3364.4,0.429]
[1642264661565,9.17720911,3364.5,3364.4,0.429]
[1642264661965,9.17720911,3364.5,3364.3,0.00135201]
[1642264662167,1.84961597,3364.4,3364.3,0.00135201]
[1642264662366,9.13174611,3364.5,3364.1,0.00248886]
[1642264662765,1.83719071,3364.4,3364.1,0.00248886]
[1642264662966,1.83719071,3364.4,3364.1,0.69188108]
[1642264663166,1.88265371,3364.4,3364.1,0.69188108]
[1642264663371,1.83265371,3364.4,3364.2,0.00192044]
[1642264664014,1.83265371,3364.4,3364.3,0.74276]
[1642264664415,1.83265371,3364.4,3364.3,0.74411201]
[1642264664613,7.2945554,3364.5,3364.3,0.74411201]
[1642264664814,0.777,3364.4,3364.3,0.74411201]
[1642264665217,7.2945554,3364.5,3364.3,1.20326938]
[1642264665420,7.2945554,3364.5,3364.4,0.1188]
[1642264665721,7.2945554,3364.5,3364.4,0.5478]
[1642264667967,8.0715554,3364.5,3364.4,0.429]
[1642264671313,8.8485554,3364.5,3364.4,0.429]
[1642264674513,9.6255554,3364.5,3364.4,0.429]
[1642264674961,8.97302172,3364.5,3364.4,0.429]
[1642264676366,8.97302172,3364.5,3364.3,0.74411201]
[1642264676564,8.97302172,3364.5,3364.4,0.429]
[1642264676764,9.01848472,3364.5,3364.3,0.00135201]
[1642264676965,0.045463,3364.4,3364.3,0.00135201]
[1642264677165,0.045463,3364.4,3364.2,0.00192044]
[1642264677366,0.045463,3364.0,3363.9,0.00362571]
[1642264677765,0.822463,3364.0,3363.9,0.00362571]
[1642264678367,0.777,3364.0,3363.9,0.00362571]
[1642264678811,0.822463,3364.0,3363.8,0.00419413]
[1642264679016,0.777,3364.0,3363.7,0.00476256]
[1642264679410,1.23019263,3363.9,3363.7,0.00476256]
[1642264680613,1.23019263,3363.9,3363.7,0.74772256]
[1642264681014,2.00719263,3363.9,3363.8,0.00419413]
[1642264683269,0.777,3363.9,3363.8,0.00419413]
[1642264683469,0.777,3363.9,3363.8,0.43319413]
[1642264683870,2.82956286,3363.9,3363.8,0.91759363]
[1642264684373,3.60656286,3363.9,3363.8,0.91759363]
[1642264685969,3.60656286,3363.9,3363.8,2.17154474]
[1642264686208,3.60656286,3363.9,3363.8,0.91759363]
[1642264687414,4.38356286,3363.9,3363.8,0.91759363]
[1642264688211,4.38356286,3363.9,3363.8,2.39716617]
[1642264689870,4.38356286,3363.9,3363.8,0.91759363]
[1642264690661,5.16056286,3363.9,3363.8,0.91759363]
[1642264692468,5.16056286,3363.9,3363.8,2.86998211]
[1642264692665,5.16056286,3363.9,3363.8,3.61283211]
[1642264693910,5.93756286,3363.9,3363.8,1.66044363]
[1642264695709,5.93756286,3363.9,3363.8,3.51442593]
[1642264695909,5.93756286,3363.9,3363.8,1.66044363]
[1642264696115,3.885,3364.6,3364.0,17.39]
[1642264696311,3.885,3364.6,3364.2,0.02510541]
[1642264696511,3.885,3364.6,3364.3,0.5478]
[1642264696710,3.885,3364.6,3364.3,0.54915201]
[1642264697116,3.885,3364.6,3364.4,1.19634557]
[1642264697117,10.75559829,3364.5,3364.4,1.19634557]
[1642264697377,10.75559829,3364.5,3364.4,1.62534557]
[1642264697571,8.4290338,3364.5,3364.4,1.62534557]
[1642264698162,8.4290338,3364.5,3364.4,0.429]
[1642264698163,8.4744968,3364.5,3364.4,0.429]
[1642264699162,8.4290338,3364.5,3364.4,0.429]
[1642264699763,8.4744968,3364.5,3364.4,0.429]